fUSD/lending_fUSD_20251110
["ID","MTS","AMOUNT","RATE_DAILY","PERIOD"]
[393532369,1762776631998,-456.38880462,0.00025904,2]
[393532370,1762776632007,-500.0,0.00025904,2]
[393532371,1762776632017,-500.0,0.00025904,2]
[393532372,1762776632027,-409.19367222,0.00025904,2]
[393532373,1762776632037,-500.0,0.00025904,2]
[393532374,1762776632046,-500.0,0.00025904,2]
[393532375,1762776632056,-500.0,0.00025904,2]
[393532376,1762776632065,-500.0,0.00025904,2]
[393532377,1762776632074,-500.0,0.00025904,2]
[393532379,1762776632084,-500.0,0.00025904,2]
[393532380,1762776632094,-500.0,0.00025904,2]
[393532382,1762776632103,-500.0,0.00025904,2]
[393532384,1762776632113,-500.0,0.00025904,2]
[393532385,1762776632122,-500.0,0.00025904,2]
[393532386,1762776632131,-500.0,0.00025904,2]
[393532387,1762776632141,-500.0,0.00025904,2]
[393532388,1762776632150,-167.2792147,0.00025904,2]
[393532389,1762776632159,-500.0,0.00025904,2]
[393532390,1762776632169,-500.0,0.00025905,2]
[393532391,1762776632178,-500.0,0.00025905,2]
[393532392,1762776632187,-4096.03,0.00025905,2]
[393532393,1762776632197,-999.99,0.00025905,2]
[393532394,1762776632206,-150.99,0.00025905,2]
[393532396,1762776632215,-9999.99,0.00025905,2]
[393532398,1762776632224,-9999.99,0.00025905,2]
[393532400,1762776632234,-2764.41300596,0.00026721,2]
[393532402,1762776632243,-150.0,0.000268,2]
[393532404,1762776632252,-81683.15,0.00026821,2]
[393532405,1762776632262,-9999.99,0.00026821,2]
[393532406,1762776632271,-1000.0,0.000271,2]
[393532407,1762776632280,-188.82,0.00028498,2]
[393532408,1762776632290,-500.0,0.0003025,5]
[393532409,1762776632300,-200.0,0.00030669,2]
[393532410,1762776632309,-2071.68,0.0003077,2]
[393532411,1762776632319,-1000.0,0.000308,2]
[393532412,1762776632328,-585.0,0.00031067,2]
[393532413,1762776632338,-192.63,0.00031234,120]
[393532414,1762776632357,-1085.1018,0.00031425,10]
[393532415,1762776632368,-500.0,0.00031667,5]
[393532416,1762776632378,-616.99576082,0.00031667,5]
[393532417,1762776632387,-500.0,0.00031667,5]
[393532418,1762776632396,-500.0,0.00031667,5]
[393532419,1762776632406,-500.0,0.00031667,5]
[393532420,1762776632416,-500.0,0.00031667,5]
[393532421,1762776632425,-500.0,0.00031667,5]
[393532422,1762776632435,-166.66,0.00032293,30]
[393532423,1762776632444,-1101.4,0.00032348,32]
[393532424,1762776632454,-151.0,0.00032647,14]
[393532425,1762776632464,-2685.43,0.0003265,2]
[393532426,1762776632473,-995.12655749,0.00032873,2]
[393532427,1762776632483,-166.66,0.00032973,30]
[393532428,1762776632493,-246.0,0.00033309,2]
[393532429,1762776632503,-152.0,0.00033424,3]
[393532430,1762776632512,-168.0,0.00033438,2]
[393532431,1762776632522,-995.12655746,0.00033594,2]
[393532432,1762776632531,-166.66,0.00033653,30]
[393532433,1762776632541,-2380.14,0.00033993,120]
[393532434,1762776632550,-163.69,0.00033993,2]
[393532435,1762776632560,-2274.0,0.00034247,15]
[393532436,1762776632570,-960.89,0.00034267,30]
[393532437,1762776632579,-995.12655746,0.00034315,2]
[393532438,1762776632589,-9693.97576236,0.00034328,2]
[393532439,1762776632599,-2500.0,0.00034328,2]
[393532440,1762776632608,-166.66,0.00034333,30]
[393532441,1762776632619,-1134.06,0.00034418,2]
[393532442,1762776632628,-1134.06,0.00034418,2]
[393532443,1762776632638,-1134.06,0.00034418,2]
[393532444,1762776632647,-151.0,0.00034425,14]
[393532445,1762776632656,-151.0,0.00034425,14]
[393532446,1762776632666,-500.0,0.00034427,30]
[393532447,1762776632676,-500.0,0.00034427,120]
[393532448,1762776632685,-515.14114772,0.00034427,120]
[393532449,1762776632695,-155.47340591,0.00034427,7]
[393532450,1762776632705,-88416.10279613,0.00034428,3]
[393532451,1762776632719,-390.61797302,0.00034428,3]
[393532452,1762776632731,-20654.12785151,0.00034428,3]
[393532453,1762776632743,-101425.69132634,0.00034428,3]
[393532454,1762776632753,-75997.7888774,0.00034428,3]
[393532455,1762776632763,-1134.06,0.00034428,2]
[393532456,1762776632772,-1134.06,0.00034428,2]
[393532457,1762776632782,-151.0,0.00034435,14]
[393532458,1762776632792,-151.0,0.00034435,14]
[393532459,1762776632802,-151.0,0.00034435,14]
[393532460,1762776632811,-500.0,0.00034437,120]
[393532461,1762776632820,-500.0,0.00034437,120]
[393532462,1762776632830,-500.0,0.00034437,7]
[393532463,1762776632840,-500.0,0.00034437,7]
[393532464,1762776632849,-500.0,0.00034437,120]
[393532465,1762776632859,-574.35281463,0.00034437,120]
[393532466,1762776632868,-151.0,0.00034438,31]
[393532467,1762776632877,-151.0,0.00034438,30]
[393532468,1762776632887,-153.092827,0.00034438,31]
[393532469,1762776632901,-151.0,0.00034438,31]
[393532470,1762776632910,-299.595237,0.00034438,31]
[393532471,1762776632919,-151.0,0.00034438,31]
[393532472,1762776632929,-151.0,0.00034438,31]
[393532473,1762776632938,-151.0,0.00034438,31]
[393532474,1762776632949,-151.0,0.00034438,31]
[393532475,1762776632961,-151.0,0.00034438,15]
[393532476,1762776632970,-151.0,0.00034438,31]
[393532477,1762776632980,-151.0,0.00034438,31]
[393532478,1762776632990,-151.0,0.00034438,31]
[393532479,1762776633000,-151.0,0.00034438,31]
[393532480,1762776633010,-151.0,0.00034438,31]
[393532481,1762776633019,-151.0,0.00034438,31]
[393532482,1762776633030,-151.0,0.00034438,31]
[393532483,1762776633040,-151.0,0.00034438,30]
[393532484,1762776633049,-151.0,0.00034438,31]
[393532485,1762776633059,-151.0,0.00034438,30]
[393532486,1762776633068,-151.0,0.00034438,31]
[393532487,1762776633078,-151.0,0.00034438,31]
[393532488,1762776633088,-151.0,0.00034438,31]
[393532489,1762776633097,-151.0,0.00034438,31]
[393532490,1762776633107,-160.30082,0.00034438,31]
[393532491,1762776633117,-151.0,0.00034438,31]
[393532492,1762776633127,-151.0,0.00034438,31]
[393532493,1762776633136,-151.0,0.00034438,31]
[393532494,1762776633146,-151.0,0.00034438,31]
[393532495,1762776633156,-74396.5407697,0.00034438,2]
[393532496,1762776633168,-2504.46080535,0.00034438,2]
[393532497,1762776633179,-517.01695779,0.00034438,2]
[393532498,1762776637695,-151.0,0.00034438,31]
[393532499,1762776637706,-4285.32048767,0.00034438,2]
[393532500,1762776637717,-40750.444,0.00034438,2]
[393532501,1762776637728,-8355.461751,0.00034438,2]
[393532502,1762776637739,-36008.590824,0.00034438,2]
[393532503,1762776637749,-96042.59403191,0.00034438,2]
[393532504,1762776637807,-447.66174487,0.00034438,2]
[393532510,1762776639965,-529.9,0.00034438,2]
[393532537,1762776646150,-151.0,0.00034438,31]
[393532538,1762776646159,-159.926438,0.00034438,31]
[393532539,1762776646168,-9224.07356201,0.00034438,2]
[393532541,1762776799551,336.81,0.00017336,2]
[393532542,1762776799755,336.81,0.00018213,2]
[393532544,1762776928074,225.99,0.00013699,2]
[393532545,1762777264641,647.30851017,0.00019,2]
[393532546,1762777324632,678.18046634,0.00019,2]
[393532547,1762777409112,-336.81,0.0001909,2]
[393532548,1762777409134,-195.0,0.00019528,2]
[393532549,1762777409156,-336.81,0.00019966,2]
[393532550,1762777409176,-225.99,0.00020187,2]
[393532551,1762777409201,-195.0,0.00020197,2]
[393532552,1762777409224,-336.81,0.00020843,2]
[393532553,1762777409245,-500.0,0.000209,2]
[393532560,1762777507658,4223.58,0.00018,2]
[393532561,1762777507686,87374.90102349,0.00018,2]
[393532562,1762777507714,1100000.0,0.00018,2]
[393532563,1762777507742,81321.3681904,0.00018,2]
[393532564,1762777507766,100000.0,0.00018,2]
[393532565,1762777507790,100000.0,0.00018,2]
[393532566,1762777508543,-283.24847223,0.00018,2]
[393532567,1762777510194,-151.0,0.00018,2]
[393532568,1762777512434,-218.06726765,0.00018,2]
[393532569,1762777514612,-237.89354022,0.00018,2]
[393532570,1762777516817,-151.0,0.00018,2]
[393532571,1762777522994,-325.96520198,0.00018,2]
[393532572,1762777526362,-170.88129443,0.00018,2]
[393532573,1762777530295,-374.43827833,0.00018,2]
[393532574,1762777548720,-783069.3855579,0.00018,2]
[393532576,1762777614397,5000.00546448,0.000162,5]
[393532577,1762777672352,5000.00453552,0.00015,2]
[393532578,1762777672375,10000.01,0.00015,2]
[393532579,1762777672397,9043.44824538,0.00015,2]
[393532764,1762777743544,-337.8408056,0.00039463,60]
[393532765,1762777743570,-467.16768503,0.00039463,120]
[393532766,1762777743595,-187.00367833,0.00039463,120]
[393532767,1762777743620,-152.59927731,0.00039463,120]
[393532768,1762777743646,-603.40919038,0.00039463,120]
[393532769,1762777743671,-3382.11053567,0.00039463,120]
[393532770,1762777743696,-186.33281629,0.00039463,120]
[393532771,1762777743722,-152.66731684,0.00039463,120]
[393532772,1762777743748,-1875.62278445,0.00039463,120]
[393532773,1762777743773,-193.98093492,0.00039463,120]
[393532774,1762777743799,-319.03469035,0.00039463,60]
[393532775,1762777743825,-206.0,0.00039463,120]
[393532776,1762777743850,-3654.1797592,0.00039463,75]
[393532777,1762777743876,-500.0,0.00039463,120]
[393532778,1762777743902,-500.0,0.00039463,120]
[393532779,1762777743928,-500.0,0.00039463,120]
[393532780,1762777743954,-500.0,0.00039463,120]
[393532781,1762777743979,-500.0,0.00039463,120]
[393532782,1762777744005,-500.0,0.00039463,120]
[393532783,1762777744031,-500.0,0.00039463,120]
[393532784,1762777744057,-512.27720094,0.00039463,120]
[393532785,1762777744082,-192.807835,0.00039463,120]
[393532786,1762777744107,-2624.42249756,0.00039463,82]
[393532787,1762777744132,-371.0,0.00039463,120]
[393532788,1762777744158,-385.35208511,0.00039463,120]
[393532789,1762777744182,-644.15845071,0.00039463,120]
[393532790,1762777744206,-500.0,0.00039463,120]
[393532791,1762777744230,-500.0,0.00039463,120]
[393532792,1762777744254,-500.0,0.00039463,120]
[393532793,1762777744278,-500.0,0.00039463,120]
[393532794,1762777744302,-500.0,0.00039463,120]
[393532795,1762777744329,-500.0,0.00039463,120]
[393532796,1762777744354,-500.0,0.00039463,120]
[393532797,1762777744380,-500.0,0.00039463,120]
[393532798,1762777744405,-500.0,0.00039463,120]
[393532799,1762777744429,-339.79787297,0.00039463,120]
[393532800,1762777744454,-500.0,0.00039463,120]
[393532801,1762777744478,-500.0,0.00039463,120]
[393532802,1762777744503,-500.0,0.00039463,120]
[393532803,1762777744527,-500.0,0.00039463,120]
[393532804,1762777744551,-500.0,0.00039463,120]
[393532805,1762777744576,-500.0,0.00039463,120]
[393532806,1762777744602,-500.0,0.00039463,120]
[393532807,1762777744627,-500.0,0.00039463,120]
[393532808,1762777744651,-500.0,0.00039463,120]
[393532809,1762777744675,-500.0,0.00039463,120]
[393532810,1762777744700,-500.0,0.00039463,120]
[393532811,1762777744726,-500.0,0.00039463,120]
[393532812,1762777744751,-500.0,0.00039463,120]
[393532813,1762777744775,-500.0,0.00039463,120]
[393532814,1762777744800,-500.0,0.00039463,120]
[393532815,1762777744826,-500.0,0.00039463,120]
[393532816,1762777744851,-500.0,0.00039463,120]
[393532817,1762777744875,-431.0633386,0.00039463,120]
[393532818,1762777745084,-520.94226621,0.00039463,120]
[393532819,1762777745109,-500.0,0.00039463,120]
[393532820,1762777745135,-500.0,0.00039463,120]
[393532821,1762777745160,-500.0,0.00039463,120]
[393532822,1762777745184,-500.0,0.00039463,120]
[393532823,1762777745209,-500.0,0.00039463,120]
[393532824,1762777745233,-500.0,0.00039463,120]
[393532825,1762777745257,-500.0,0.00039463,120]
[393532826,1762777745282,-500.0,0.00039463,120]
[393532827,1762777745306,-500.0,0.00039463,120]
[393532828,1762777745332,-500.0,0.00039463,120]
[393532829,1762777745354,-500.0,0.00039463,120]
[393532830,1762777745380,-344.19102428,0.00039463,120]
[393532831,1762777745404,-500.0,0.00039463,120]
[393532832,1762777745428,-500.0,0.00039463,120]
[393532833,1762777745452,-500.0,0.00039463,120]
[393532834,1762777745476,-500.0,0.00039463,120]
[393532835,1762777745500,-500.0,0.00039463,120]
[393532836,1762777745524,-500.0,0.00039463,120]
[393532837,1762777745549,-210.82758994,0.00039463,120]
[393532838,1762777745573,-500.0,0.00039463,120]
[393532839,1762777745598,-500.0,0.00039463,120]
[393532840,1762777745622,-500.0,0.00039463,120]
[393532841,1762777745647,-500.0,0.00039463,120]
[393532842,1762777745671,-500.0,0.00039463,120]
[393532843,1762777745696,-500.0,0.00039463,120]
[393532844,1762777745721,-500.0,0.00039463,120]
[393532845,1762777745745,-500.0,0.00039463,120]
[393532846,1762777745770,-159.05330415,0.00039463,120]
[393532847,1762777745794,-720.77,0.00039463,120]
[393532848,1762777745820,-720.77,0.00039463,120]
[393532849,1762777745844,-720.77,0.00039463,120]
[393532850,1762777745868,-720.77,0.00039463,120]
[393532851,1762777745894,-720.77,0.00039463,120]
[393532852,1762777745919,-720.77,0.00039463,120]
[393532853,1762777745944,-720.77,0.00039463,120]
[393532854,1762777745969,-720.77,0.00039463,120]
[393532855,1762777745997,-720.77,0.00039463,120]
[393532856,1762777746023,-720.77,0.00039463,120]
[393532857,1762777746049,-720.77,0.00039463,120]
[393532858,1762777746074,-720.77,0.00039463,120]
[393532859,1762777746100,-720.77,0.00039463,120]
[393532860,1762777746125,-720.77,0.00039463,120]
[393532861,1762777746150,-720.77,0.00039463,120]
[393532862,1762777746175,-720.77,0.00039463,120]
[393532863,1762777746199,-720.77,0.00039463,120]
[393532864,1762777746223,-720.77,0.00039463,120]
[393532865,1762777746247,-720.77,0.00039463,120]
[393532866,1762777746271,-720.77,0.00039463,120]
[393532867,1762777746295,-720.77,0.00039463,120]
[393532868,1762777746319,-720.77,0.00039463,120]
[393532869,1762777746346,-720.77,0.00039463,120]
[393532870,1762777746372,-720.80738873,0.00039463,120]
[393532871,1762777746397,-604.68004546,0.00039463,120]
[393532872,1762777746422,-500.0,0.00039463,120]
[393532873,1762777746445,-500.0,0.00039463,120]
[393532874,1762777746469,-500.0,0.00039463,120]
[393532875,1762777746492,-500.0,0.00039463,120]
[393532876,1762777746516,-571.77093954,0.00039463,120]
[393532877,1762777746541,-520.81210657,0.00039463,120]
[393532878,1762777746564,-500.0,0.00039463,120]
[393532879,1762777746590,-165.84735494,0.00039463,120]
[393532880,1762777746614,-500.0,0.00039463,120]
[393532881,1762777746638,-500.0,0.00039463,120]
[393532882,1762777746662,-500.0,0.00039463,120]
[393532883,1762777746686,-500.0,0.00039463,120]
[393532884,1762777746710,-500.0,0.00039463,120]
[393532885,1762777746735,-500.0,0.00039463,120]
[393532886,1762777746760,-500.0,0.00039463,120]
[393532887,1762777746785,-500.0,0.00039463,120]
[393532888,1762777746811,-500.0,0.00039463,120]
[393532889,1762777746835,-500.0,0.00039463,120]
[393532890,1762777746860,-500.0,0.00039463,120]
[393532891,1762777746885,-500.0,0.00039463,120]
[393532892,1762777746909,-343.49189982,0.00039463,120]
[393532893,1762777746934,-500.0,0.00039463,120]
[393532894,1762777746960,-500.0,0.00039463,120]
[393532895,1762777746985,-500.0,0.00039463,120]
[393532896,1762777747010,-500.0,0.00039463,120]
[393532897,1762777747035,-500.0,0.00039463,120]
[393532898,1762777747059,-500.0,0.00039463,120]
[393532899,1762777747083,-500.0,0.00039463,120]
[393532900,1762777747108,-500.0,0.00039463,120]
[393532901,1762777747132,-500.0,0.00039463,120]
[393532902,1762777747157,-343.60728405,0.00039463,120]
[393532903,1762777747182,-500.0,0.00039463,120]
[393532904,1762777747207,-500.0,0.00039463,120]
[393532905,1762777747231,-500.0,0.00039463,120]
[393532906,1762777747255,-500.0,0.00039463,120]
[393532907,1762777747279,-500.0,0.00039463,120]
[393532908,1762777747303,-500.0,0.00039463,120]
[393532909,1762777747330,-500.0,0.00039463,120]
[393532910,1762777747354,-500.0,0.00039463,120]
[393532911,1762777747379,-500.0,0.00039463,120]
[393532912,1762777747404,-500.0,0.00039463,120]
[393532913,1762777747429,-500.0,0.00039463,120]
[393532914,1762777747455,-500.0,0.00039463,120]
[393532915,1762777747479,-486.60052335,0.00039463,120]
[393532916,1762777747503,-500.0,0.00039463,120]
[393532917,1762777747528,-500.0,0.00039463,120]
[393532918,1762777747552,-500.0,0.00039463,120]
[393532919,1762777747581,-500.0,0.00039463,120]
[393532920,1762777747606,-500.0,0.00039463,120]
[393532921,1762777747630,-264.61279781,0.00039463,120]
[393532922,1762777747905,-500.0,0.00039463,120]
[393532923,1762777747932,-500.0,0.00039463,120]
[393532924,1762777747961,-500.0,0.00039463,120]
[393532925,1762777747985,-500.0,0.00039463,120]
[393532926,1762777748010,-270.78897114,0.00039463,120]
[393532927,1762777748035,-500.0,0.00039463,120]
[393532928,1762777748062,-271.73787547,0.00039463,120]
[393532929,1762777748088,-587.31523383,0.00039463,120]
[393532930,1762777748115,-187.1573773,0.00039463,120]
[393532931,1762777748141,-500.0,0.00039463,120]
[393532932,1762777748167,-500.0,0.00039463,120]
[393532933,1762777748193,-211.28630112,0.00039463,120]
[393532934,1762777748218,-633.92703412,0.00039463,120]
[393532935,1762777748243,-163.24970756,0.00039463,120]
[393532936,1762777748267,-637.86241508,0.00039463,120]
[393532937,1762777748294,-500.0,0.00039463,120]
[393532938,1762777748318,-500.0,0.00039463,120]
[393532939,1762777748347,-500.0,0.00039463,120]
[393532940,1762777748373,-500.0,0.00039463,120]
[393532941,1762777748402,-500.0,0.00039463,120]
[393532942,1762777748427,-500.0,0.00039463,120]
[393532943,1762777748452,-500.0,0.00039463,120]
[393532944,1762777748478,-500.0,0.00039463,120]
[393532945,1762777748503,-500.0,0.00039463,120]
[393532946,1762777748529,-500.0,0.00039463,120]
[393532947,1762777748554,-500.0,0.00039463,120]
[393532948,1762777748580,-500.0,0.00039463,120]
[393532949,1762777748604,-500.0,0.00039463,120]
[393532950,1762777748630,-494.36837388,0.00039463,120]
[393532951,1762777748654,-500.0,0.00039463,120]
[393532952,1762777748680,-500.0,0.00039463,120]
[393532953,1762777748706,-500.0,0.00039463,120]
[393532954,1762777748734,-500.0,0.00039463,120]
[393532955,1762777748760,-500.0,0.00039463,120]
[393532956,1762777748785,-500.0,0.00039463,120]
[393532957,1762777748815,-500.0,0.00039463,120]
[393532958,1762777748841,-500.0,0.00039463,120]
[393532959,1762777748866,-500.0,0.00039463,120]
[393532960,1762777748891,-500.0,0.00039463,120]
[393532961,1762777748916,-500.0,0.00039463,120]
[393532962,1762777748941,-477.38486088,0.00039463,120]
[393532963,1762777748967,-556.95375835,0.00039463,120]
[393532964,1762777748993,-500.0,0.00039463,120]
[393532965,1762777749018,-500.0,0.00039463,120]
[393532966,1762777749047,-500.0,0.00039463,120]
[393532967,1762777749072,-500.0,0.00039463,120]
[393532968,1762777749098,-500.0,0.00039463,120]
[393532969,1762777749124,-500.0,0.00039463,120]
[393532970,1762777749151,-500.0,0.00039463,120]
[393532971,1762777749178,-500.0,0.00039463,120]
[393532972,1762777749204,-629.16,0.00039463,120]
[393532973,1762777749228,-500.0,0.00039463,120]
[393532974,1762777749252,-629.16,0.00039463,120]
[393532975,1762777749281,-500.0,0.00039463,120]
[393532976,1762777749306,-629.16,0.00039463,120]
[393532977,1762777749332,-500.0,0.00039463,120]
[393532978,1762777749357,-629.16,0.00039463,120]
[393532979,1762777749383,-500.0,0.00039463,120]
[393532980,1762777749408,-629.16,0.00039463,120]
[393532981,1762777749434,-500.0,0.00039463,120]
[393532982,1762777749458,-629.16,0.00039463,120]
[393532983,1762777749484,-500.0,0.00039463,120]
[393532984,1762777749512,-629.16,0.00039463,120]
[393532985,1762777749536,-629.16,0.00039463,120]
[393532986,1762777749563,-500.0,0.00039463,120]
[393532987,1762777749588,-629.16,0.00039463,120]
[393532988,1762777749614,-500.0,0.00039463,120]
[393532989,1762777749640,-629.16,0.00039463,120]
[393532990,1762777749666,-500.0,0.00039463,120]
[393532991,1762777749693,-500.0,0.00039463,120]
[393532992,1762777749718,-629.16,0.00039463,120]
[393532993,1762777749745,-191.03505022,0.00039463,120]
[393532994,1762777749770,-500.0,0.00039463,120]
[393532995,1762777749795,-629.16,0.00039463,120]
[393532996,1762777749820,-454.35558747,0.00039463,120]
[393532997,1762777749844,-629.16,0.00039463,120]
[393532998,1762777749868,-629.16,0.00039463,120]
[393532999,1762777749893,-629.16,0.00039463,120]
[393533000,1762777749917,-629.16,0.00039463,120]
[393533001,1762777749950,-629.16,0.00039463,120]
[393533002,1762777749979,-629.16,0.00039463,120]
[393533003,1762777750005,-629.16,0.00039463,120]
[393533004,1762777750032,-629.16,0.00039463,120]
[393533005,1762777750058,-629.16,0.00039463,120]
[393533006,1762777750084,-629.16,0.00039463,120]
[393533007,1762777750112,-629.16,0.00039463,120]
[393533008,1762777750137,-629.20513559,0.00039463,120]
[393533009,1762777750162,-500.0,0.00039463,120]
[393533010,1762777750187,-156.84426581,0.00039463,120]
[393533011,1762777750212,-500.0,0.00039463,120]
[393533012,1762777750239,-500.0,0.00039463,120]
[393533013,1762777750268,-557.19086397,0.00039463,120]
[393533014,1762777750298,-500.0,0.00039463,120]
[393533015,1762777750329,-500.0,0.00039463,120]
[393533016,1762777750353,-500.0,0.00039463,120]
[393533017,1762777750383,-500.0,0.00039463,120]
[393533018,1762777750408,-500.0,0.00039463,120]
[393533019,1762777750433,-500.0,0.00039463,120]
[393533020,1762777750458,-500.0,0.00039463,120]
[393533021,1762777750483,-500.0,0.00039463,120]
[393533022,1762777750506,-500.0,0.00039463,120]
[393533023,1762777750530,-500.0,0.00039463,120]
[393533024,1762777750554,-500.0,0.00039463,120]
[393533025,1762777750579,-500.0,0.00039463,120]
[393533026,1762777750821,-500.0,0.00039463,120]
[393533027,1762777750847,-500.0,0.00039463,120]
[393533028,1762777750873,-500.0,0.00039463,120]
[393533029,1762777750897,-500.0,0.00039463,120]
[393533030,1762777750922,-355.23466732,0.00039463,120]
[393533031,1762777750952,-500.0,0.00039463,120]
[393533032,1762777750977,-500.0,0.00039463,120]
[393533033,1762777751004,-500.0,0.00039463,120]
[393533034,1762777751029,-500.0,0.00039463,120]
[393533035,1762777751055,-500.0,0.00039463,120]
[393533036,1762777751079,-500.0,0.00039463,120]
[393533037,1762777751104,-500.0,0.00039463,120]
[393533038,1762777751129,-309.03869947,0.00039463,120]
[393533039,1762777751153,-500.0,0.00039463,120]
[393533040,1762777751182,-500.0,0.00039463,120]
[393533041,1762777751208,-500.0,0.00039463,120]
[393533042,1762777751231,-500.0,0.00039463,120]
[393533043,1762777751256,-500.0,0.00039463,120]
[393533044,1762777751279,-583.35829269,0.00039463,120]
[393533045,1762777751303,-588.64188759,0.00039463,120]
[393533046,1762777751330,-500.0,0.00039463,120]
[393533047,1762777751354,-500.0,0.00039463,120]
[393533048,1762777751379,-500.0,0.00039463,120]
[393533049,1762777751404,-270.89536033,0.00039463,120]
[393533050,1762777751428,-500.0,0.00039463,120]
[393533051,1762777751454,-500.0,0.00039463,120]
[393533052,1762777751479,-500.0,0.00039463,120]
[393533053,1762777751503,-500.0,0.00039463,120]
[393533054,1762777751529,-500.0,0.00039463,120]
[393533055,1762777751554,-500.0,0.00039463,120]
[393533056,1762777751579,-500.0,0.00039463,120]
[393533057,1762777751604,-500.0,0.00039463,120]
[393533058,1762777751628,-500.0,0.00039463,120]
[393533059,1762777751652,-500.0,0.00039463,120]
[393533060,1762777751676,-500.0,0.00039463,120]
[393533061,1762777751700,-500.0,0.00039463,120]
[393533062,1762777751725,-500.0,0.00039463,120]
[393533063,1762777751750,-500.0,0.00039463,120]
[393533064,1762777751775,-591.82524707,0.00039463,120]
[393533065,1762777751800,-500.0,0.00039463,120]
[393533066,1762777751827,-411.95682714,0.00039463,120]
[393533067,1762777751854,-500.0,0.00039463,120]
[393533068,1762777751881,-193.77764351,0.00039463,120]
[393533069,1762777751907,-412.87756868,0.00039463,120]
[393533070,1762777751933,-500.0,0.00039463,120]
[393533071,1762777751959,-500.0,0.00039463,120]
[393533072,1762777751985,-500.0,0.00039463,120]
[393533073,1762777752011,-500.0,0.00039463,120]
[393533074,1762777752037,-500.0,0.00039463,120]
[393533075,1762777752064,-500.0,0.00039463,120]
[393533076,1762777752092,-500.0,0.00039463,120]
[393533077,1762777752118,-500.0,0.00039463,120]
[393533078,1762777752143,-500.0,0.00039463,120]
[393533079,1762777752169,-451.01807439,0.00039463,120]
[393533080,1762777752193,-522.86203934,0.00039463,120]
[393533081,1762777752220,-500.0,0.00039463,120]
[393533082,1762777752245,-500.0,0.00039463,120]
[393533083,1762777752270,-500.0,0.00039463,120]
[393533084,1762777752294,-500.0,0.00039463,120]
[393533085,1762777752320,-500.0,0.00039463,120]
[393533086,1762777752347,-500.0,0.00039463,120]
[393533087,1762777752372,-500.0,0.00039463,120]
[393533088,1762777752398,-486.91961201,0.00039463,120]
[393533089,1762777752423,-500.0,0.00039463,120]
[393533090,1762777752449,-500.0,0.00039463,120]
[393533091,1762777752474,-500.0,0.00039463,120]
[393533092,1762777752499,-500.0,0.00039463,120]
[393533093,1762777752524,-500.0,0.00039463,120]
[393533094,1762777752549,-500.0,0.00039463,120]
[393533095,1762777752574,-500.0,0.00039463,120]
[393533096,1762777752598,-500.0,0.00039463,120]
[393533097,1762777752621,-500.0,0.00039463,120]
[393533098,1762777752645,-322.06519456,0.00039463,120]
[393533099,1762777752670,-505.32085961,0.00039463,120]
[393533100,1762777752695,-500.0,0.00039463,120]